Workbook

Sheet données suivi
A1: 595

Sheet Graph

Sheet Données
A3: Date | B3: =DATE(2018,7,16) -> 2018-07-16
G4: 0.1 | J4: Étiquettes de lignes | K4: Somme de CHARGE D'ENTRAINEMENT | L4: Nombre de ACWR (Acute chronic workload ratio)
B5: =B3 -> 2018-07-16 | G5: 0.2 | J5: 2018 | K5: 60306 | L5: 142
B6: =B5+1 -> 2018-07-17 | G6: 0.3 | J6: déc | K6: 11160 | L6: 31
B7: =B6+1 -> 2018-07-18 | G7: 0.4 | J7: Trimestre4 | K7: 11160 | L7: 31
B8: =B7+1 -> 2018-07-19 | G8: 0.5 | J8: nov | K8: 10800 | L8: 30
B9: 2018-07-20 | G9: 0.6 | J9: Trimestre4 | K9: 10800 | L9: 30
B10: 2018-07-21 | G10: 0.7 | J10: oct | K10: 11160 | L10: 31
B11: 2018-07-22 | G11: 0.8 | J11: Trimestre4 | K11: 11160 | L11: 31
B12: 2018-07-23 | D12: Sheets("LBP").Range("A3").Value = ComboBox1 Sheets("LBP").Range("B3").Value = TextBox1 Sheets("LBP").Range("C3").Value = TextBox2 Sheets("LBP").Range("D3").Value = TextBox3 Sheets("LBP").Range("E3").Value = TextBox4 Sheets("LBP").Range("F3").Value = TextBox5 Sheets("LBP").Range("G3").Value = TextBox6 Sheets("LBP").Range("H3").Value = DTPicker1 Sheets("LBP").Range("I3").Value = TextBox8 Sheets("LBP").Range("J3").Value = ComboBox2 | G12: 0.9 | J12: sept | K12: 10800 | L12: 30
B13: 2018-07-24 | G13: 1 | J13: Trimestre3 | K13: 10800 | L13: 30
B14: 2018-07-25 | G14: 1.1 | J14: août | K14: 11160 | L14: 20
B15: 2018-07-26 | G15: 1.2 | J15: Trimestre3 | K15: 11160 | L15: 20
B16: 2018-07-27 | G16: 1.3 | J16: juil | K16: 5226
B17: 2018-07-28 | G17: 1.4 | J17: Trimestre3 | K17: 5226
B18: 2018-07-29 | G18: 1.5 | J18: Total général | K18: 60306 | L18: 142
B19: 2018-07-30 | G19: 1.6
B20: 2018-07-31 | G20: 1.7
B21: 2018-08-01 | G21: 1.8
B22: 2018-08-02 | G22: 1.9
B23: 2018-08-03 | G23: 2
B24: 2018-08-04 | G24: 2.1
B25: 2018-08-05 | G25: 2.2
B26: 2018-08-06 | G26: 2.3
B27: 2018-08-07
B28: 2018-08-08
B29: 2018-08-09
B30: 2018-08-10
B31: 2018-08-11
B32: 2018-08-12
B33: 2018-08-13
B34: 2018-08-14
B35: 2018-08-15
B36: 2018-08-16
B37: 2018-08-17
B38: 2018-08-18
B39: 2018-08-19
B40: 2018-08-20
B41: 2018-08-21
B42: 2018-08-22
B43: 2018-08-23
B44: 2018-08-24
B45: 2018-08-25
B46: 2018-08-26
B47: 2018-08-27
B48: 2018-08-28
B49: 2018-08-29
B50: 2018-08-30
B51: 2018-08-31
B52: 2018-09-01
B53: 2018-09-02
B54: 2018-09-03
B55: 2018-09-04
B56: 2018-09-05
B57: 2018-09-06
B58: 2018-09-07
B59: 2018-09-08
B60: 2018-09-09
B61: 2018-09-10
B62: 2018-09-11
B63: 2018-09-12
B64: 2018-09-13
B65: 2018-09-14
B66: 2018-09-15
B67: 2018-09-16
B68: 2018-09-17
B69: 2018-09-18
B70: 2018-09-19
B71: 2018-09-20
B72: =B71+1 -> 2018-09-21
B73: 2018-09-22
B74: 2018-09-23
B75: 2018-09-24
B76: 2018-09-25
B77: 2018-09-26
B78: 2018-09-27
B79: 2018-09-28
B80: 2018-09-29
B81: 2018-09-30
B82: 2018-10-01
B83: 2018-10-02
B84: 2018-10-03
B85: 2018-10-04
B86: 2018-10-05
B87: 2018-10-06
B88: 2018-10-07
B89: 2018-10-08
B90: 2018-10-09
B91: 2018-10-10
B92: 2018-10-11
B93: 2018-10-12
B94: 2018-10-13
B95: 2018-10-14
B96: 2018-10-15
B97: 2018-10-16
B98: 2018-10-17
B99: 2018-10-18
B100: 2018-10-19
B101: 2018-10-20
B102: 2018-10-21
B103: 2018-10-22
B104: 2018-10-23
B105: 2018-10-24
B106: 2018-10-25
B107: 2018-10-26
B108: 2018-10-27
B109: 2018-10-28
B110: 2018-10-29
B111: 2018-10-30
B112: 2018-10-31
B113: 2018-11-01
B114: 2018-11-02
B115: 2018-11-03
B116: 2018-11-04
B117: 2018-11-05
B118: 2018-11-06
B119: 2018-11-07
B120: 2018-11-08
B121: 2018-11-09
B122: 2018-11-10
B123: 2018-11-11
B124: 2018-11-12
B125: 2018-11-13
B126: 2018-11-14
B127: 2018-11-15
B128: 2018-11-16
B129: 2018-11-17
B130: 2018-11-18
B131: 2018-11-19
B132: 2018-11-20
B133: 2018-11-21
B134: 2018-11-22
B135: 2018-11-23
B136: =B135+1 -> 2018-11-24
B137: 2018-11-25
B138: 2018-11-26
B139: 2018-11-27
B140: 2018-11-28
B141: 2018-11-29
B142: 2018-11-30
B143: 2018-12-01
B144: 2018-12-02
B145: 2018-12-03
B146: 2018-12-04
B147: 2018-12-05
B148: 2018-12-06
B149: 2018-12-07
B150: 2018-12-08
B151: 2018-12-09
B152: 2018-12-10
B153: 2018-12-11
B154: 2018-12-12
B155: 2018-12-13
B156: 2018-12-14
B157: 2018-12-15
B158: 2018-12-16
B159: 2018-12-17
B160: 2018-12-18
B161: 2018-12-19
B162: 2018-12-20
B163: 2018-12-21
B164: 2018-12-22
B165: 2018-12-23
B166: 2018-12-24
B167: 2018-12-25
B168: 2018-12-26
B169: 2018-12-27
B170: 2018-12-28
B171: 2018-12-29
B172: 2018-12-30
B173: 2018-12-31
B174: 2019-01-01
B175: 2019-01-02
B176: 2019-01-03
B177: 2019-01-04
B178: 2019-01-05
B179: 2019-01-06
B180: 2019-01-07
B181: 2019-01-08
B182: 2019-01-09
B183: 2019-01-10
B184: 2019-01-11
B185: 2019-01-12
B186: 2019-01-13
B187: 2019-01-14
B188: 2019-01-15
B189: 2019-01-16
B190: 2019-01-17
B191: 2019-01-18
B192: 2019-01-19
B193: 2019-01-20
B194: 2019-01-21
B195: 2019-01-22
B196: 2019-01-23
B197: 2019-01-24
B198: 2019-01-25
B199: 2019-01-26
B200: =B199+1 -> 2019-01-27
B201: 2019-01-28
B202: 2019-01-29
... 124 more rows

Sheet données suivi tableau
A2: 2018-07-16
Q3: 7 | R3: 28
C4: Séance 1 | E4: Séance 2 | Q4: =2/(Q3+1) -> 0.25 | R4: =2/(R3+1) -> 0.06896551724
A5: Mois | B5: Date | C5: RPE 1 (rating of perceived exertion /10) | D5: Temps d'effort 1 (mn) | E5: RPE 2 (rating of perceived exertion /10) | F5: Temps d'effort 2 (mn) | G5: CHARGE D'ENTRAINEMENT | H5: Intensité hebdomadaire | I5: Durée hebdomadaire | J5: Points par séance | K5: Repos hebdomadaire | L5: ATL (Acute training load) | M5: CTL (chronic traing load) | N5: ACWR (Acute chronic workload ratio) | O5: TSB | P5: Monotonie charge
A6: Juillet | B6: =A2 -> 2018-07-16 | C6: 5 | D6: 70 | E6: 5 | F6: 60 | G6: =(E6*F6) + (C6*D6) -> 650 | H6: =SUM(E6:E12,C6:C12) -> 37 | I6: =SUM(F6:F12,D6:D12) -> 438 | J6: =H6/(COUNTIF(E6:E12,">0")+COUNTIF(C6:C12,">0")) -> 5.285714286 | K6: =COUNTIF(G6:G12,"0") -> 1 | P6: =AVERAGE(G6:G12)/STDEVP(G6:G12) -> 1.36109903
A7: Juillet | B7: =B6+1 -> 2018-07-17 | E7: 4 | F7: 48 | G7: 192 | H7: =SUM(E7:E13,C7:C13) -> 33 | I7: =SUM(F7:F13,D7:D13) -> 368 | J7: =H7/(COUNTIF(E7:E13,">0")+COUNTIF(C7:C13,">0")) -> 5.5 | K7: =COUNTIF(G7:G13,"0") -> 1 | P7: =AVERAGE(G7:G13)/STDEVP(G7:G13) -> 1.375358877
A8: Juillet | B8: =B7+1 -> 2018-07-18 | E8: 1 | F8: 58 | G8: 58 | H8: 35 | I8: 380 | J8: 5.833333333 | K8: 1 | P8: 1.512987746
A9: Juillet | B9: 2018-07-19 | C9: 8 | D9: 60 | G9: 480 | H9: 40 | I9: 376.6666667 | J9: 6.666666667 | K9: 1 | P9: 1.958978041
A10: Juillet | B10: 2018-07-20 | E10: 9 | F10: 74 | G10: 666 | H10: 38 | I10: 367.3333333 | J10: 6.333333333 | K10: 1 | P10: 1.882891751
A11: Juillet | B11: 2018-07-21 | G11: 0 | H11: 35 | I11: 340 | J11: 5.833333333 | K11: 1 | P11: 2.385068196
A12: Juillet | B12: 2018-07-22 | E12: 5 | F12: 68 | G12: 340 | H12: 41 | I12: 382.6666667 | J12: 5.857142857 | K12: 0 | L12: =(1-Q4)*G12+Q4*G12 -> 340 | P12: 8.59674368
A13: Juillet | B13: 2018-07-23 | E13: 6 | F13: 60 | G13: 360 | H13: 42 | I13: 353.3333333 | J13: 6 | K13: 0 | L13: =(1-$Q$4)*L12+$Q$4*G13 -> 345 | P13: 6.563750611
A14: Juillet | B14: 2018-07-24 | E14: 6 | F14: 60 | G14: 360 | H14: 42 | I14: 353.3333333 | J14: 6 | K14: 0 | L14: 348.75 | P14: 6.563750611
A15: Juillet | B15: 2018-07-25 | E15: 6 | F15: 54.66666667 | G15: 328 | H15: 42 | I15: 353.3333333 | J15: 6 | K15: 0 | L15: 343.5625 | P15: 6.563750611
A16: Juillet | B16: 2018-07-26 | E16: 6 | F16: 50.66666667 | G16: 304 | H16: 42 | I16: 358.6666667 | J16: 6 | K16: 0 | L16: 333.671875 | P16: 6.168037759
A17: Juillet | B17: 2018-07-27 | E17: 6 | F17: 46.66666667 | G17: 280 | H17: 42 | I17: 368 | J17: 6 | K17: 0 | L17: 320.2539063 | P17: 5.946839708
A18: Juillet | B18: 2018-07-28 | E18: 6 | F18: 42.66666667 | G18: 256 | H18: 42 | I18: 381.3333333 | J18: 6 | K18: 0 | L18: 304.1904297 | P18: 6.191114351
A19: Juillet | B19: 2018-07-29 | E19: 6 | F19: 38.66666667 | G19: 232 | H19: 42 | I19: 398.6666667 | J19: 6 | K19: 0 | L19: 286.1428223 | P19: 7.629139928
A20: Juillet | B20: 2018-07-30 | E20: 6 | F20: 60 | G20: 360 | H20: 42 | I20: 420 | J20: 6 | K20: 0 | L20: 304.6071167
A21: Juillet | B21: 2018-07-31 | E21: 6 | F21: 60 | G21: 360 | H21: 42 | I21: 420 | J21: 6 | K21: 0 | L21: 318.4553375
A22: Août | B22: 2018-08-01 | E22: 6 | F22: 60 | G22: 360 | H22: 42 | I22: 420 | J22: 6 | K22: 0 | L22: 328.8415031
A23: Août | B23: 2018-08-02 | E23: 6 | F23: 60 | G23: 360 | H23: 42 | I23: 420 | J23: 6 | K23: 0 | L23: 336.6311274
A24: Août | B24: 2018-08-03 | E24: 6 | F24: 60 | G24: 360 | H24: 42 | I24: 420 | J24: 6 | K24: 0 | L24: 342.4733455
A25: Août | B25: 2018-08-04 | E25: 6 | F25: 60 | G25: 360 | H25: 42 | I25: 420 | J25: 6 | K25: 0 | L25: 346.8550091
A26: Août | B26: 2018-08-05 | E26: 6 | F26: 60 | G26: 360 | H26: 42 | I26: 420 | J26: 6 | K26: 0 | L26: 350.1412569
A27: Août | B27: 2018-08-06 | E27: 6 | F27: 60 | G27: 360 | H27: 42 | I27: 420 | J27: 6 | K27: 0 | L27: 352.6059426
A28: Août | B28: 2018-08-07 | E28: 6 | F28: 60 | G28: 360 | H28: 42 | I28: 420 | J28: 6 | K28: 0 | L28: 354.454457
A29: Août | B29: 2018-08-08 | E29: 6 | F29: 60 | G29: 360 | H29: 42 | I29: 420 | J29: 6 | K29: 0 | L29: 355.8408427
A30: Août | B30: 2018-08-09 | E30: 6 | F30: 60 | G30: 360 | H30: 42 | I30: 420 | J30: 6 | K30: 0 | L30: 356.8806321
A31: Août | B31: 2018-08-10 | E31: 6 | F31: 60 | G31: 360 | H31: 42 | I31: 420 | J31: 6 | K31: 0 | L31: 357.660474
A32: Août | B32: 2018-08-11 | E32: 6 | F32: 60 | G32: 360 | H32: 42 | I32: 420 | J32: 6 | K32: 0 | L32: 358.2453555
A33: Août | B33: 2018-08-12 | E33: 6 | F33: 60 | G33: 360 | H33: 42 | I33: 420 | J33: 6 | K33: 0 | L33: 358.6840166 | M33: =(1-R4)*G33+R4*G33 -> 360 | N33: =(L33/M33) -> 0.9963444907 | O33: =L33-M33 -> -1.315983353
A34: Août | B34: 2018-08-13 | E34: 6 | F34: 60 | G34: 360 | H34: 42 | I34: 420 | J34: 6 | K34: 0 | L34: 359.0130125 | M34: =(1-$R$4)*M33+$R$4*G34 -> 360 | N34: =(L34/M34) -> 0.997258368 | O34: =L34-M34 -> -0.986987515
A35: Août | B35: 2018-08-14 | E35: 6 | F35: 60 | G35: 360 | H35: 42 | I35: 420 | J35: 6 | K35: 0 | L35: 359.2597594 | M35: 360 | N35: =(L35/M35) -> 0.997943776 | O35: -0.7402406362
A36: Août | B36: 2018-08-15 | E36: 6 | F36: 60 | G36: 360 | H36: 42 | I36: 420 | J36: 6 | K36: 0 | L36: 359.4448195 | M36: 360 | N36: 0.998457832 | O36: -0.5551804772
A37: Août | B37: 2018-08-16 | E37: 6 | F37: 60 | G37: 360 | H37: 42 | I37: 420 | J37: 6 | K37: 0 | L37: 359.5836146 | M37: 360 | N37: 0.998843374 | O37: -0.4163853579
A38: Août | B38: 2018-08-17 | E38: 6 | F38: 60 | G38: 360 | H38: 42 | I38: 420 | J38: 6 | K38: 0 | L38: 359.687711 | M38: 360 | N38: 0.9991325305 | O38: -0.3122890184
A39: Août | B39: 2018-08-18 | E39: 6 | F39: 60 | G39: 360 | H39: 42 | I39: 420 | J39: 6 | K39: 0 | L39: 359.7657832 | M39: 360 | N39: 0.9993493979 | O39: -0.2342167638
A40: Août | B40: 2018-08-19 | E40: 6 | F40: 60 | G40: 360 | H40: 42 | I40: 420 | J40: 6 | K40: 0 | L40: 359.8243374 | M40: 360 | N40: 0.9995120484 | O40: -0.1756625729
A41: Août | B41: 2018-08-20 | E41: 6 | F41: 60 | G41: 360 | H41: 42 | I41: 420 | J41: 6 | K41: 0 | L41: 359.8682531 | M41: 360 | N41: 0.9996340363 | O41: -0.1317469296
A42: Août | B42: 2018-08-21 | E42: 6 | F42: 60 | G42: 360 | H42: 42 | I42: 420 | J42: 6 | K42: 0 | L42: 359.9011898 | M42: 360 | N42: 0.9997255272 | O42: -0.09881019723
A43: Août | B43: 2018-08-22 | E43: 6 | F43: 60 | G43: 360 | H43: 42 | I43: 420 | J43: 6 | K43: 0 | L43: 359.9258924 | M43: 360 | N43: 0.9997941454 | O43: -0.07410764792
A44: Août | B44: 2018-08-23 | E44: 6 | F44: 60 | G44: 360 | H44: 42 | I44: 420 | J44: 6 | K44: 0 | L44: 359.9444193 | M44: 360 | N44: 0.9998456091 | O44: -0.05558073594
A45: Août | B45: 2018-08-24 | E45: 6 | F45: 60 | G45: 360 | H45: 42 | I45: 420 | J45: 6 | K45: 0 | L45: 359.9583144 | M45: 360 | N45: 0.9998842068 | O45: -0.04168555196
A46: Août | B46: 2018-08-25 | E46: 6 | F46: 60 | G46: 360 | H46: 42 | I46: 420 | J46: 6 | K46: 0 | L46: 359.9687358 | M46: 360 | N46: 0.9999131551 | O46: -0.03126416397
A47: Août | B47: 2018-08-26 | E47: 6 | F47: 60 | G47: 360 | H47: 42 | I47: 420 | J47: 6 | K47: 0 | L47: 359.9765519 | M47: 360 | N47: 0.9999348663 | O47: -0.02344812298
A48: Août | B48: 2018-08-27 | E48: 6 | F48: 60 | G48: 360 | H48: 42 | I48: 420 | J48: 6 | K48: 0 | L48: 359.9824139 | M48: 360 | N48: 0.9999511497 | O48: -0.01758609223
A49: Août | B49: 2018-08-28 | E49: 6 | F49: 60 | G49: 360 | H49: 42 | I49: 420 | J49: 6 | K49: 0 | L49: 359.9868104 | M49: 360 | N49: 0.9999633623 | O49: -0.01318956917
A50: Août | B50: 2018-08-29 | E50: 6 | F50: 60 | G50: 360 | H50: 42 | I50: 420 | J50: 6 | K50: 0 | L50: 359.9901078 | M50: 360 | N50: 0.9999725217 | O50: -0.00989217688
A51: Août | B51: 2018-08-30 | E51: 6 | F51: 60 | G51: 360 | H51: 42 | I51: 420 | J51: 6 | K51: 0 | L51: 359.9925809 | M51: 360 | N51: 0.9999793913 | O51: -0.00741913266
A52: Août | B52: 2018-08-31 | E52: 6 | F52: 60 | G52: 360 | H52: 42 | I52: 420 | J52: 6 | K52: 0 | L52: 359.9944357 | M52: 360 | N52: 0.9999845435 | O52: -0.005564349495
A53: Septembre | B53: 2018-09-01 | E53: 6 | F53: 60 | G53: 360 | H53: 42 | I53: 420 | J53: 6 | K53: 0 | L53: 359.9958267 | M53: 360 | N53: 0.9999884076 | O53: -0.004173262121
A54: septembre | B54: 2018-09-02 | E54: 6 | F54: 60 | G54: 360 | H54: 42 | I54: 420 | J54: 6 | K54: 0 | L54: 359.9968701 | M54: 360 | N54: 0.9999913057 | O54: -0.003129946591
A55: Septembre | B55: 2018-09-03 | E55: 6 | F55: 60 | G55: 360 | H55: 42 | I55: 420 | J55: 6 | K55: 0 | L55: 359.9976525 | M55: 360 | N55: 0.9999934793 | O55: -0.002347459943
A56: Septembre | B56: 2018-09-04 | E56: 6 | F56: 60 | G56: 360 | H56: 42 | I56: 420 | J56: 6 | K56: 0 | L56: 359.9982394 | M56: 360 | N56: 0.9999951095 | O56: -0.001760594957
A57: Septembre | B57: 2018-09-05 | E57: 6 | F57: 60 | G57: 360 | H57: 42 | I57: 420 | J57: 6 | K57: 0 | L57: 359.9986796 | M57: 360 | N57: 0.9999963321 | O57: -0.001320446218
A58: Septembre | B58: 2018-09-06 | E58: 6 | F58: 60 | G58: 360 | H58: 42 | I58: 420 | J58: 6 | K58: 0 | L58: 359.9990097 | M58: 360 | N58: 0.9999972491 | O58: -0.0009903346636
A59: Septembre | B59: 2018-09-07 | E59: 6 | F59: 60 | G59: 360 | H59: 42 | I59: 420 | J59: 6 | K59: 0 | L59: 359.9992572 | M59: 360 | N59: 0.9999979368 | O59: -0.0007427509977
A60: Septembre | B60: 2018-09-08 | E60: 6 | F60: 60 | G60: 360 | H60: 42 | I60: 420 | J60: 6 | K60: 0 | L60: 359.9994429 | M60: 360 | N60: 0.9999984526 | O60: -0.0005570632483
A61: Septembre | B61: 2018-09-09 | E61: 6 | F61: 60 | G61: 360 | H61: 42 | I61: 420 | J61: 6 | K61: 0 | L61: 359.9995822 | M61: 360 | N61: 0.9999988395 | O61: -0.0004177974362
A62: Septembre | B62: 2018-09-10 | E62: 6 | F62: 60 | G62: 360 | H62: 42 | I62: 420 | J62: 6 | K62: 0 | L62: 359.9996867 | M62: 360 | N62: 0.9999991296 | O62: -0.0003133480772
A63: Septembre | B63: 2018-09-11 | E63: 6 | F63: 60 | G63: 360 | H63: 42 | I63: 420 | J63: 6 | K63: 0 | L63: 359.999765 | M63: 360 | N63: 0.9999993472 | O63: -0.0002350110578
A64: Septembre | B64: 2018-09-12 | E64: 6 | F64: 60 | G64: 360 | H64: 42 | I64: 420 | J64: 6 | K64: 0 | L64: 359.9998237 | M64: 360 | N64: 0.9999995104 | O64: -0.0001762582934
A65: Septembre | B65: 2018-09-13 | E65: 6 | F65: 60 | G65: 360 | H65: 42 | I65: 420 | J65: 6 | K65: 0 | L65: 359.9998678 | M65: 360 | N65: 0.9999996328 | O65: -0.00013219372
A66: Septembre | B66: 2018-09-14 | E66: 6 | F66: 60 | G66: 360 | H66: 42 | I66: 420 | J66: 6 | K66: 0 | L66: 359.9999009 | M66: 360 | N66: 0.9999997246 | O66: -9.914529005e-05
A67: Septembre | B67: 2018-09-15 | E67: 6 | F67: 60 | G67: 360 | H67: 42 | I67: 420 | J67: 6 | K67: 0 | L67: 359.9999256 | M67: 360 | N67: 0.9999997934 | O67: -7.435896754e-05
A68: Septembre | B68: 2018-09-16 | E68: 6 | F68: 60 | G68: 360 | H68: 42 | I68: 420 | J68: 6 | K68: 0 | L68: 359.9999442 | M68: 360 | N68: 0.9999998451 | O68: -5.576922564e-05
A69: Septembre | B69: 2018-09-17 | E69: 6 | F69: 60 | G69: 360 | H69: 42 | I69: 420 | J69: 6 | K69: 0 | L69: 359.9999582 | M69: 360 | N69: 0.9999998838 | O69: -4.182691924e-05
A70: Septembre | B70: 2018-09-18 | E70: 6 | F70: 60 | G70: =(E70*F70) + (C70*D70) -> 360 | H70: 42 | I70: 420 | J70: 6 | K70: 0 | L70: 359.9999686 | M70: 360 | N70: 0.9999999129 | O70: -3.137018945e-05
A71: Septembre | B71: 2018-09-19 | E71: 6 | F71: 60 | G71: 360 | H71: =SUM(E71:E77,C71:C77) -> 42 | I71: =SUM(F71:F77,D71:D77) -> 420 | J71: =H71/(COUNTIF(E71:E77,">0")+COUNTIF(C71:C77,">0")) -> 6 | K71: =COUNTIF(G71:G77,"0") -> 0 | L71: 359.9999765 | M71: 360 | N71: 0.9999999346 | O71: -2.35276421e-05 | P71: =AVERAGE(G71:G77)/STDEVP(G71:G77) -> 
A72: Septembre | B72: =B71+1 -> 2018-09-20 | E72: 6 | F72: 60 | G72: 360 | H72: 42 | I72: 420 | J72: 6 | K72: 0 | L72: 359.9999824 | M72: 360 | N72: 0.999999951 | O72: -1.764573159e-05
A73: Septembre | B73: 2018-09-21 | E73: 6 | F73: 60 | G73: 360 | H73: 42 | I73: 420 | J73: 6 | K73: 0 | L73: 359.9999868 | M73: 360 | N73: 0.9999999632 | O73: -1.323429871e-05
A74: Septembre | B74: 2018-09-22 | E74: 6 | F74: 60 | G74: 360 | H74: 42 | I74: 420 | J74: 6 | K74: 0 | L74: 359.9999901 | M74: 360 | N74: 0.9999999724 | O74: -9.925724044e-06
A75: Septembre | B75: 2018-09-23 | E75: 6 | F75: 60 | G75: 360 | H75: 42 | I75: 420 | J75: 6 | K75: 0 | L75: 359.9999926 | M75: 360 | N75: 0.9999999793 | O75: -7.444293033e-06
A76: Septembre | B76: 2018-09-24 | E76: 6 | F76: 60 | G76: 360 | H76: 42 | I76: 420 | J76: 6 | K76: 0 | L76: 359.9999944 | M76: 360 | N76: 0.9999999845 | O76: -5.583219775e-06
A77: Septembre | B77: 2018-09-25 | E77: 6 | F77: 60 | G77: 360 | H77: 42 | I77: 420 | J77: 6 | K77: 0 | L77: =(1-$Q$4)*L76+$Q$4*G77 -> 359.9999958 | M77: 360 | N77: 0.9999999884 | O77: -4.187414845e-06
A78: Septembre | B78: 2018-09-26 | E78: 6 | F78: 60 | G78: 360 | H78: 42 | I78: 420 | J78: 6 | K78: 0 | L78: 359.9999969 | M78: 360 | N78: 0.9999999913 | O78: -3.140561148e-06
A79: Septembre | B79: 2018-09-27 | E79: 6 | F79: 60 | G79: 360 | H79: 42 | I79: 420 | J79: 6 | K79: 0 | L79: 359.9999976 | M79: 360 | N79: 0.9999999935 | O79: -2.355420861e-06
A80: Septembre | B80: 2018-09-28 | E80: 6 | F80: 60 | G80: 360 | H80: 42 | I80: 420 | J80: 6 | K80: 0 | L80: 359.9999982 | M80: 360 | N80: 0.9999999951 | O80: -1.766565674e-06
A81: Septembre | B81: 2018-09-29 | E81: 6 | F81: 60 | G81: 360 | H81: 42 | I81: 420 | J81: 6 | K81: 0 | L81: 359.9999987 | M81: 360 | N81: 0.9999999963 | O81: -1.324924256e-06
A82: Septembre | B82: 2018-09-30 | E82: 6 | F82: 60 | G82: 360 | H82: 42 | I82: 420 | J82: 6 | K82: 0 | L82: 359.999999 | M82: 360 | N82: 0.9999999972 | O82: -9.936932202e-07
A83: Août | B83: 2018-10-01 | E83: 6 | F83: 60 | G83: 360 | H83: 42 | I83: 420 | J83: 6 | K83: 0 | L83: 359.9999993 | M83: 360 | N83: 0.9999999979 | O83: -7.452699151e-07
A84: Août | B84: 2018-10-02 | E84: 6 | F84: 60 | G84: 360 | H84: 42 | I84: 420 | J84: 6 | K84: 0 | L84: 359.9999994 | M84: 360 | N84: 0.9999999984 | O84: -5.589524221e-07
A85: Août | B85: 2018-10-03 | E85: 6 | F85: 60 | G85: 360 | H85: 42 | I85: 420 | J85: 6 | K85: 0 | L85: 359.9999996 | M85: 360 | N85: 0.9999999988 | O85: -4.192143024e-07
A86: Août | B86: 2018-10-04 | E86: 6 | F86: 60 | G86: 360 | H86: 42 | I86: 420 | J86: 6 | K86: 0 | L86: 359.9999997 | M86: 360 | N86: 0.9999999991 | O86: -3.144107268e-07
A87: Août | B87: 2018-10-05 | E87: 6 | F87: 60 | G87: 360 | H87: 42 | I87: 420 | J87: 6 | K87: 0 | L87: 359.9999998 | M87: 360 | N87: 0.9999999993 | O87: -2.358080451e-07
A88: Août | B88: 2018-10-06 | E88: 6 | F88: 60 | G88: 360 | H88: 42 | I88: 420 | J88: 6 | K88: 0 | L88: 359.9999998 | M88: 360 | N88: 0.9999999995 | O88: -1.768560196e-07
A89: Août | B89: 2018-10-07 | E89: 6 | F89: 60 | G89: 360 | H89: 42 | I89: 420 | J89: 6 | K89: 0 | L89: 359.9999999 | M89: 360 | N89: 0.9999999996 | O89: -1.326420147e-07
A90: Août | B90: 2018-10-08 | E90: 6 | F90: 60 | G90: 360 | H90: 42 | I90: 420 | J90: 6 | K90: 0 | L90: 359.9999999 | M90: 360 | N90: 0.9999999997 | O90: -9.948149682e-08
A91: Août | B91: 2018-10-09 | E91: 6 | F91: 60 | G91: 360 | H91: 42 | I91: 420 | J91: 6 | K91: 0 | L91: 359.9999999 | M91: 360 | N91: 0.9999999998 | O91: -7.461113682e-08
A92: Août | B92: 2018-10-10 | E92: 6 | F92: 60 | G92: 360 | H92: 42 | I92: 420 | J92: 6 | K92: 0 | L92: 359.9999999 | M92: 360 | N92: 0.9999999998 | O92: -5.595836683e-08
A93: Août | B93: 2018-10-11 | E93: 6 | F93: 60 | G93: 360 | H93: 42 | I93: 420 | J93: 6 | K93: 0 | L93: 360 | M93: 360 | N93: 0.9999999999 | O93: -4.19687467e-08
A94: Août | B94: 2018-10-12 | E94: 6 | F94: 60 | G94: 360 | H94: 42 | I94: 420 | J94: 6 | K94: 0 | L94: 360 | M94: 360 | N94: 0.9999999999 | O94: -3.147658845e-08
A95: Août | B95: 2018-10-13 | E95: 6 | F95: 60 | G95: 360 | H95: 42 | I95: 420 | J95: 6 | K95: 0 | L95: 360 | M95: 360 | N95: 0.9999999999 | O95: -2.360741291e-08
A96: Août | B96: 2018-10-14 | E96: 6 | F96: 60 | G96: 360 | H96: 42 | I96: 420 | J96: 6 | K96: 0 | L96: 360 | M96: 360 | N96: 1 | O96: -1.770558811e-08
A97: Août | B97: 2018-10-15 | E97: 6 | F97: 60 | G97: 360 | H97: 42 | I97: 420 | J97: 6 | K97: 0 | L97: 360 | M97: 360 | N97: 1 | O97: -1.327919108e-08
A98: Août | B98: 2018-10-16 | E98: 6 | F98: 60 | G98: 360 | H98: 42 | I98: 420 | J98: 6 | K98: 0 | L98: 360 | M98: =(1-$R$4)*M97+$R$4*G98 -> 360 | N98: 1 | O98: =L98-M98 -> -9.959421732e-09
A99: Août | B99: 2018-10-17 | E99: 6 | F99: 60 | G99: 360 | H99: 42 | I99: 420 | J99: 6 | K99: 0 | L99: 360 | M99: 360 | N99: =(L99/M99) -> 1 | O99: -7.469566299e-09
A100: Août | B100: 2018-10-18 | E100: 6 | F100: 60 | G100: 360 | H100: 42 | I100: 420 | J100: 6 | K100: 0 | L100: 360 | M100: 360 | N100: 1 | O100: -5.602146302e-09
A101: Août | B101: 2018-10-19 | E101: 6 | F101: 60 | G101: 360 | H101: 42 | I101: 420 | J101: 6 | K101: 0 | L101: 360 | M101: 360 | N101: 1 | O101: -4.201638149e-09
A102: Août | B102: 2018-10-20 | E102: 6 | F102: 60 | G102: 360 | H102: 42 | I102: 420 | J102: 6 | K102: 0 | L102: 360 | M102: 360 | N102: 1 | O102: -3.151228611e-09
A103: Août | B103: 2018-10-21 | E103: 6 | F103: 60 | G103: 360 | H103: 42 | I103: 420 | J103: 6 | K103: 0 | L103: 360 | M103: 360 | N103: 1 | O103: -2.363435669e-09
A104: Août | B104: 2018-10-22 | E104: 6 | F104: 60 | G104: 360 | H104: 42 | I104: 420 | J104: 6 | K104: 0 | L104: 360 | M104: 360 | N104: 1 | O104: -1.772605174e-09
A105: Août | B105: 2018-10-23 | E105: 6 | F105: 60 | G105: 360 | H105: 42 | I105: 420 | J105: 6 | K105: 0 | L105: 360 | M105: 360 | N105: 1 | O105: -1.32945388e-09
A106: Août | B106: 2018-10-24 | E106: 6 | F106: 60 | G106: 360 | H106: 42 | I106: 420 | J106: 6 | K106: 0 | L106: 360 | M106: 360 | N106: 1 | O106: -9.970904102e-10
A107: Août | B107: 2018-10-25 | E107: 6 | F107: 60 | G107: 360 | H107: 42 | I107: 420 | J107: 6 | K107: 0 | L107: 360 | M107: 360 | N107: 1 | O107: -7.478320185e-10
A108: Août | B108: 2018-10-26 | E108: 6 | F108: 60 | G108: 360 | H108: 42 | I108: 420 | J108: 6 | K108: 0 | L108: 360 | M108: 360 | N108: 1 | O108: -5.608740139e-10
A109: Août | B109: 2018-10-27 | E109: 6 | F109: 60 | G109: 360 | H109: 42 | I109: 420 | J109: 6 | K109: 0 | L109: 360 | M109: 360 | N109: 1 | O109: -4.206412996e-10
A110: Août | B110: 2018-10-28 | E110: 6 | F110: 60 | G110: 360 | H110: 42 | I110: 420 | J110: 6 | K110: 0 | L110: 360 | M110: 360 | N110: 1 | O110: -3.154809747e-10
A111: Août | B111: 2018-10-29 | E111: 6 | F111: 60 | G111: 360 | H111: 42 | I111: 420 | J111: 6 | K111: 0 | L111: 360 | M111: 360 | N111: 1 | O111: -2.365823093e-10
A112: Août | B112: 2018-10-30 | E112: 6 | F112: 60 | G112: 360 | H112: 42 | I112: 420 | J112: 6 | K112: 0 | L112: 360 | M112: 360 | N112: 1 | O112: -1.774651537e-10
A113: Août | B113: 2018-10-31 | E113: 6 | F113: 60 | G113: 360 | H113: 42 | I113: 420 | J113: 6 | K113: 0 | L113: 360 | M113: 360 | N113: 1 | O113: -1.33127287e-10
A114: Août | B114: 2018-11-01 | E114: 6 | F114: 60 | G114: 360 | H114: 42 | I114: 420 | J114: 6 | K114: 0 | L114: 360 | M114: 360 | N114: 1 | O114: -9.981704352e-11
A115: Août | B115: 2018-11-02 | E115: 6 | F115: 60 | G115: 360 | H115: 42 | I115: 420 | J115: 6 | K115: 0 | L115: 360 | M115: 360 | N115: 1 | O115: -7.486278264e-11
A116: Août | B116: 2018-11-03 | E116: 6 | F116: 60 | G116: 360 | H116: 42 | I116: 420 | J116: 6 | K116: 0 | L116: 360 | M116: 360 | N116: 1 | O116: -5.616129783e-11
A117: Août | B117: 2018-11-04 | E117: 6 | F117: 60 | G117: 360 | H117: 42 | I117: 420 | J117: 6 | K117: 0 | L117: 360 | M117: 360 | N117: 1 | O117: -4.212097338e-11
A118: Août | B118: 2018-11-05 | E118: 6 | F118: 60 | G118: 360 | H118: 42 | I118: 420 | J118: 6 | K118: 0 | L118: 360 | M118: 360 | N118: 1 | O118: -3.160494089e-11
A119: Août | B119: 2018-11-06 | E119: 6 | F119: 60 | G119: 360 | H119: 42 | I119: 420 | J119: 6 | K119: 0 | L119: 360 | M119: 360 | N119: 1 | O119: -2.370370566e-11
A120: Août | B120: 2018-11-07 | E120: 6 | F120: 60 | G120: 360 | H120: 42 | I120: 420 | J120: 6 | K120: 0 | L120: 360 | M120: 360 | N120: 1 | O120: -1.77919901e-11
A121: Août | B121: 2018-11-08 | E121: 6 | F121: 60 | G121: 360 | H121: 42 | I121: 420 | J121: 6 | K121: 0 | L121: 360 | M121: 360 | N121: 1 | O121: -1.335820343e-11
A122: Août | B122: 2018-11-09 | E122: 6 | F122: 60 | G122: 360 | H122: 42 | I122: 420 | J122: 6 | K122: 0 | L122: 360 | M122: 360 | N122: 1 | O122: -1.000444172e-11
A123: Août | B123: 2018-11-10 | E123: 6 | F123: 60 | G123: 360 | H123: 42 | I123: 420 | J123: 6 | K123: 0 | L123: 360 | M123: 360 | N123: 1 | O123: -7.50333129e-12
A124: Août | B124: 2018-11-11 | E124: 6 | F124: 60 | G124: 360 | H124: 42 | I124: 420 | J124: 6 | K124: 0 | L124: 360 | M124: 360 | N124: 1 | O124: -5.627498467e-12
A125: Août | B125: 2018-11-12 | E125: 6 | F125: 60 | G125: 360 | H125: 42 | I125: 420 | J125: 6 | K125: 0 | L125: 360 | M125: 360 | N125: 1 | O125: -4.206412996e-12
A126: Août | B126: 2018-11-13 | E126: 6 | F126: 60 | G126: 360 | H126: 42 | I126: 420 | J126: 6 | K126: 0 | L126: 360 | M126: 360 | N126: 1 | O126: -3.183231456e-12
A127: Août | B127: 2018-11-14 | E127: 6 | F127: 60 | G127: 360 | H127: 42 | I127: 420 | J127: 6 | K127: 0 | L127: 360 | M127: 360 | N127: 1 | O127: -2.387423592e-12
A128: Août | B128: 2018-11-15 | E128: 6 | F128: 60 | G128: 360 | H128: 42 | I128: 420 | J128: 6 | K128: 0 | L128: 360 | M128: 360 | N128: 1 | O128: -1.818989404e-12
A129: Août | B129: 2018-11-16 | E129: 6 | F129: 60 | G129: 360 | H129: 42 | I129: 420 | J129: 6 | K129: 0 | L129: 360 | M129: 360 | N129: 1 | O129: -1.364242053e-12
A130: Août | B130: 2018-11-17 | E130: 6 | F130: 60 | G130: 360 | H130: 42 | I130: 420 | J130: 6 | K130: 0 | L130: 360 | M130: 360 | N130: 1 | O130: -1.023181539e-12
A131: Août | B131: 2018-11-18 | E131: 6 | F131: 60 | G131: 360 | H131: 42 | I131: 420 | J131: 6 | K131: 0 | L131: 360 | M131: 360 | N131: 1 | O131: -7.958078641e-13
A132: Août | B132: 2018-11-19 | E132: 6 | F132: 60 | G132: 360 | H132: 42 | I132: 420 | J132: 6 | K132: 0 | L132: 360 | M132: 360 | N132: 1 | O132: -5.684341886e-13
A133: Août | B133: 2018-11-20 | E133: 6 | F133: 60 | G133: 360 | H133: 42 | I133: 420 | J133: 6 | K133: 0 | L133: 360 | M133: 360 | N133: 1 | O133: -4.547473509e-13
A134: Août | B134: 2018-11-21 | E134: 6 | F134: 60 | G134: =(E134*F134) + (C134*D134) -> 360 | H134: 42 | I134: 420 | J134: 6 | K134: 0 | L134: 360 | M134: 360 | N134: 1 | O134: 0
A135: Août | B135: 2018-11-22 | E135: 6 | F135: 60 | G135: 360 | H135: =SUM(E135:E141,C135:C141) -> 42 | I135: =SUM(F135:F141,D135:D141) -> 420 | J135: =H135/(COUNTIF(E135:E141,">0")+COUNTIF(C135:C141,">0")) -> 6 | K135: =COUNTIF(G135:G141,"0") -> 0 | L135: 360 | M135: 360 | N135: 1 | O135: 0 | P135: =AVERAGE(G135:G141)/STDEVP(G135:G141) -> 
B136: =B135+1 -> 2018-11-23 | E136: 6 | F136: 60 | G136: 360 | H136: 42 | I136: 420 | J136: 6 | K136: 0 | L136: 360 | M136: 360 | N136: 1 | O136: 0
B137: 2018-11-24 | E137: 6 | F137: 60 | G137: 360 | H137: 42 | I137: 420 | J137: 6 | K137: 0 | L137: 360 | M137: 360 | N137: 1 | O137: 0
B138: 2018-11-25 | E138: 6 | F138: 60 | G138: 360 | H138: 42 | I138: 420 | J138: 6 | K138: 0 | L138: 360 | M138: 360 | N138: 1 | O138: 0
B139: 2018-11-26 | E139: 6 | F139: 60 | G139: 360 | H139: 42 | I139: 420 | J139: 6 | K139: 0 | L139: 360 | M139: 360 | N139: 1 | O139: 0
B140: 2018-11-27 | E140: 6 | F140: 60 | G140: 360 | H140: 42 | I140: 420 | J140: 6 | K140: 0 | L140: 360 | M140: 360 | N140: 1 | O140: 0
B141: 2018-11-28 | E141: 6 | F141: 60 | G141: 360 | H141: 42 | I141: 420 | J141: 6 | K141: 0 | L141: =(1-$Q$4)*L140+$Q$4*G141 -> 360 | M141: 360 | N141: 1 | O141: 0
B142: 2018-11-29 | E142: 6 | F142: 60 | G142: 360 | H142: 42 | I142: 420 | J142: 6 | K142: 0 | L142: 360 | M142: 360 | N142: 1 | O142: 0
B143: 2018-11-30 | E143: 6 | F143: 60 | G143: 360 | H143: 42 | I143: 420 | J143: 6 | K143: 0 | L143: 360 | M143: 360 | N143: 1 | O143: 0
B144: 2018-12-01 | E144: 6 | F144: 60 | G144: 360 | H144: 42 | I144: 420 | J144: 6 | K144: 0 | L144: 360 | M144: 360 | N144: 1 | O144: 0
B145: 2018-12-02 | E145: 6 | F145: 60 | G145: 360 | H145: 42 | I145: 420 | J145: 6 | K145: 0 | L145: 360 | M145: 360 | N145: 1 | O145: 0
B146: 2018-12-03 | E146: 6 | F146: 60 | G146: 360 | H146: 42 | I146: 420 | J146: 6 | K146: 0 | L146: 360 | M146: 360 | N146: 1 | O146: 0
B147: 2018-12-04 | E147: 6 | F147: 60 | G147: 360 | H147: 42 | I147: 420 | J147: 6 | K147: 0 | L147: 360 | M147: 360 | N147: 1 | O147: 0
B148: 2018-12-05 | E148: 6 | F148: 60 | G148: 360 | H148: 42 | I148: 420 | J148: 6 | K148: 0 | L148: 360 | M148: 360 | N148: 1 | O148: 0
B149: 2018-12-06 | E149: 6 | F149: 60 | G149: 360 | H149: 42 | I149: 420 | J149: 6 | K149: 0 | L149: 360 | M149: 360 | N149: 1 | O149: 0
B150: 2018-12-07 | E150: 6 | F150: 60 | G150: 360 | H150: 42 | I150: 420 | J150: 6 | K150: 0 | L150: 360 | M150: 360 | N150: 1 | O150: 0
B151: 2018-12-08 | E151: 6 | F151: 60 | G151: 360 | H151: 42 | I151: 420 | J151: 6 | K151: 0 | L151: 360 | M151: 360 | N151: 1 | O151: 0
B152: 2018-12-09 | E152: 6 | F152: 60 | G152: 360 | H152: 42 | I152: 420 | J152: 6 | K152: 0 | L152: 360 | M152: 360 | N152: 1 | O152: 0
B153: 2018-12-10 | E153: 6 | F153: 60 | G153: 360 | H153: 42 | I153: 420 | J153: 6 | K153: 0 | L153: 360 | M153: 360 | N153: 1 | O153: 0
B154: 2018-12-11 | E154: 6 | F154: 60 | G154: 360 | H154: 42 | I154: 420 | J154: 6 | K154: 0 | L154: 360 | M154: 360 | N154: 1 | O154: 0
B155: 2018-12-12 | E155: 6 | F155: 60 | G155: 360 | H155: 42 | I155: 420 | J155: 6 | K155: 0 | L155: 360 | M155: 360 | N155: 1 | O155: 0
B156: 2018-12-13 | E156: 6 | F156: 60 | G156: 360 | H156: 42 | I156: 420 | J156: 6 | K156: 0 | L156: 360 | M156: 360 | N156: 1 | O156: 0
B157: 2018-12-14 | E157: 6 | F157: 60 | G157: 360 | H157: 42 | I157: 420 | J157: 6 | K157: 0 | L157: 360 | M157: 360 | N157: 1 | O157: 0
B158: 2018-12-15 | E158: 6 | F158: 60 | G158: 360 | H158: 42 | I158: 420 | J158: 6 | K158: 0 | L158: 360 | M158: 360 | N158: 1 | O158: 0
B159: 2018-12-16 | E159: 6 | F159: 60 | G159: 360 | H159: 42 | I159: 420 | J159: 6 | K159: 0 | L159: 360 | M159: 360 | N159: 1 | O159: 0
B160: 2018-12-17 | E160: 6 | F160: 60 | G160: 360 | H160: 42 | I160: 420 | J160: 6 | K160: 0 | L160: 360 | M160: 360 | N160: 1 | O160: 0
B161: 2018-12-18 | E161: 6 | F161: 60 | G161: 360 | H161: 42 | I161: 420 | J161: 6 | K161: 0 | L161: 360 | M161: 360 | N161: 1 | O161: 0
B162: 2018-12-19 | E162: 6 | F162: 60 | G162: 360 | H162: 42 | I162: 420 | J162: 6 | K162: 0 | L162: 360 | M162: =(1-$R$4)*M161+$R$4*G162 -> 360 | N162: 1 | O162: =L162-M162 -> 0
B163: 2018-12-20 | E163: 6 | F163: 60 | G163: 360 | H163: 42 | I163: 420 | J163: 6 | K163: 0 | L163: 360 | M163: 360 | N163: =(L163/M163) -> 1 | O163: 0
B164: 2018-12-21 | E164: 6 | F164: 60 | G164: 360 | H164: 42 | I164: 420 | J164: 6 | K164: 0 | L164: 360 | M164: 360 | N164: 1 | O164: 0
B165: 2018-12-22 | E165: 6 | F165: 60 | G165: 360 | H165: 42 | I165: 420 | J165: 6 | K165: 0 | L165: 360 | M165: 360 | N165: 1 | O165: 0
B166: 2018-12-23 | E166: 6 | F166: 60 | G166: 360 | H166: 42 | I166: 420 | J166: 6 | K166: 0 | L166: 360 | M166: 360 | N166: 1 | O166: 0
B167: 2018-12-24 | E167: 6 | F167: 60 | G167: 360 | H167: 42 | I167: 420 | J167: 6 | K167: 0 | L167: 360 | M167: 360 | N167: 1 | O167: 0
B168: 2018-12-25 | E168: 6 | F168: 60 | G168: 360 | H168: 42 | I168: 420 | J168: 6 | K168: 0 | L168: 360 | M168: 360 | N168: 1 | O168: 0
B169: 2018-12-26 | E169: 6 | F169: 60 | G169: 360 | H169: 42 | I169: 360 | J169: 6 | K169: 1 | L169: 360 | M169: 360 | N169: 1 | O169: 0 | P169: 2.449489743
B170: 2018-12-27 | E170: 6 | F170: 60 | G170: 360 | H170: 42 | I170: 300 | J170: 6 | K170: 2 | L170: 360 | M170: 360 | N170: 1 | O170: 0 | P170: 1.58113883
B171: 2018-12-28 | E171: 6 | F171: 60 | G171: 360 | H171: 42 | I171: 240 | J171: 6 | K171: 3 | L171: 360 | M171: 360 | N171: 1 | O171: 0 | P171: 1.154700538
B172: 2018-12-29 | E172: 6 | F172: 60 | G172: 360 | H172: 42 | I172: 180 | J172: 6 | K172: 4 | L172: 360 | M172: 360 | N172: 1 | O172: 0 | P172: 0.8660254038
B173: 2018-12-30 | E173: 6 | F173: 60 | G173: 360 | H173: 42 | I173: 120 | J173: 6 | K173: 5 | L173: 360 | M173: 360 | N173: 1 | O173: 0 | P173: 0.632455532
B174: 2018-12-31 | E174: 6 | F174: 60 | G174: 360 | H174: 42 | I174: 60 | J174: 6 | K174: 6 | L174: 360 | M174: 360 | N174: 1 | O174: 0 | P174: 0.4082482905
B175: 2019-01-01 | E175: 6 | G175: 0 | H175: 42 | I175: 0 | J175: 6 | K175: 7 | L175: 270 | M175: 335.1724138 | N175: 0.8055555556 | O175: -65.17241379
B176: 2019-01-02 | E176: 6 | G176: 0 | H176: 42 | I176: 0 | J176: 6 | K176: 7 | L176: 202.5 | M176: 312.0570749 | N176: 0.6489197531 | O176: -109.5570749
B177: 2019-01-03 | E177: 6 | G177: 0 | H177: 42 | I177: 0 | J177: 6 | K177: 7 | L177: 151.875 | M177: 290.5358973 | N177: 0.5227409122 | O177: -138.6608973
B178: 2019-01-04 | E178: 6 | G178: 0 | H178: 42 | I178: 0 | J178: 6 | K178: 7 | L178: 113.90625 | M178: 270.4989389 | N178: 0.4210968459 | O178: -156.5926889
B179: 2019-01-05 | E179: 6 | G179: 0 | H179: 42 | I179: 0 | J179: 6 | K179: 7 | L179: 85.4296875 | M179: 251.8438397 | N179: 0.3392169037 | O179: -166.4141522
B180: 2019-01-06 | E180: 6 | G180: 0 | H180: 36 | I180: 0 | J180: 6 | K180: 7 | L180: 64.07226562 | M180: 234.475299 | N180: 0.2732580613 | O180: -170.4030334
B181: 2019-01-07 | E181: 6 | G181: 0 | H181: 30 | I181: 0 | J181: 6 | K181: 7 | L181: 48.05419922 | M181: 218.3045887 | N181: 0.2201245494 | O181: -170.2503895
B182: 2019-01-08 | E182: 6 | G182: 0 | H182: 24 | I182: 0 | J182: 6 | K182: 7 | L182: 36.04064941 | M182: 203.2490998 | N182: 0.1773225537 | O182: -167.2084504
B183: 2019-01-09 | E183: 6 | G183: 0 | H183: 18 | I183: 0 | J183: 6 | K183: 7 | L183: 27.03048706 | M183: 189.2319205 | N183: 0.1428431682 | O183: -162.2014335
B184: 2019-01-10 | E184: 6 | G184: 0 | H184: 12 | I184: 0 | J184: 6 | K184: 7 | L184: 20.2728653 | M184: 176.1814433 | N184: 0.1150681077 | O184: -155.908578
B185: 2019-01-11 | E185: 6 | G185: 0 | H185: 6 | I185: 0 | J185: 6 | K185: 7 | L185: 15.20464897 | M185: 164.0309989 | N185: 0.09269375346 | O185: -148.8263499
B186: 2019-01-12 | G186: 0 | H186: 0 | I186: 0 | K186: 7 | L186: 11.40348673 | M186: 152.7185162 | N186: 0.07466996806 | O186: -141.3150295
B187: 2019-01-13 | G187: 0 | H187: 0 | I187: 0 | K187: 7 | L187: 8.552615047 | M187: 142.1862048 | N187: 0.06015080761 | O187: -133.6335897
B188: 2019-01-14 | G188: 0 | H188: 0 | I188: 0 | K188: 7 | L188: 6.414461285 | M188: 132.3802596 | N188: 0.04845481724 | O188: -125.9657983
B189: 2019-01-15 | G189: 0 | H189: 0 | I189: 0 | K189: 7 | L189: 4.810845964 | M189: 123.2505865 | N189: 0.03903304722 | O189: -118.4397406
B190: 2019-01-16 | G190: 0 | H190: 0 | I190: 0 | K190: 7 | L190: 3.608134473 | M190: 114.7505461 | N190: 0.03144328804 | O190: -111.1424116
B191: 2019-01-17 | G191: 0 | H191: 0 | I191: 0 | K191: 7 | L191: 2.706100855 | M191: 106.8367153 | N191: 0.02532931536 | O191: -104.1306145
B192: 2019-01-18 | G192: 0 | H192: 0 | I192: 0 | K192: 7 | L192: 2.029575641 | M192: 99.46866598 | N192: 0.02040417071 | O192: -97.43909034
B193: 2019-01-19 | G193: 0 | H193: 0 | I193: 0 | K193: 7 | L193: 1.522181731 | M193: 92.60875798 | N193: 0.01643669307 | O193: -91.08657625
B194: 2019-01-20 | G194: 0 | H194: 0 | I194: 0 | K194: 7 | L194: 1.141636298 | M194: 86.22194708 | N194: 0.01324066942 | O194: -85.08031079
B195: 2019-01-21 | G195: 0 | H195: 0 | I195: 0 | K195: 7 | L195: 0.8562272235 | M195: 80.27560591 | N195: 0.01066609481 | O195: -79.41937868
B196: 2019-01-22 | G196: 0 | H196: 0 | I196: 0 | K196: 7 | L196: 0.6421704176 | M196: 74.73935722 | N196: 0.00859213193 | O196: -74.09718681
B197: 2019-01-23 | G197: 0 | H197: 0 | I197: 0 | K197: 7 | L197: 0.4816278132 | M197: 69.58491879 | N197: 0.00692143961 | O197: -69.10329098
B198: 2019-01-24 | G198: =(E198*F198) + (C198*D198) -> 0 | H198: 0 | I198: 0 | K198: 7 | L198: 0.3612208599 | M198: 64.78595888 | N198: 0.005575604131 | O198: -64.42473802
B199: 2019-01-25 | G199: 0 | H199: =SUM(E199:E205,C199:C205) -> 0 | I199: =SUM(F199:F205,D199:D205) -> 0 | J199: =H199/(COUNTIF(E199:E205,">0")+COUNTIF(C199:C205,">0")) ->  | K199: =COUNTIF(G199:G205,"0") -> 7 | L199: 0.2709156449 | M199: 60.31796171 | N199: 0.004491458883 | O199: -60.04704607 | P199: =AVERAGE(G199:G205)/STDEVP(G199:G205) -> 
B200: =B199+1 -> 2019-01-26 | G200: 0 | H200: 0 | I200: 0 | K200: 7 | L200: 0.2031867337 | M200: 56.15810228 | N200: 0.003618119656 | O200: -55.95491555
B201: 2019-01-27 | G201: 0 | H201: 0 | I201: 0 | K201: 7 | L201: 0.1523900503 | M201: 52.28512971 | N201: 0.002914596389 | O201: -52.13273966
... 126 more rows
